bitfinex-derivatives/quotes_SOLF0:USTF0_20250919
["timestamp","ask_amount","ask_price","bid_price","bid_amount"]
[1758280359664,2.98530758,241.92,241.85,7.12]
[1758280359863,2.98530758,241.91,241.85,7.12]
[1758280360064,2.98530758,241.9,241.85,7.12]
[1758280360262,2.98690897,241.89,241.84,106.8793]
[1758280360566,3.7182,241.92,241.85,110.22]
[1758280360868,2.98690887,241.91,241.86,103.1]
[1758280361161,2.98690887,241.91,241.79,1.87991215]
[1758280361162,2.98690887,241.9,241.79,1.87991215]
[1758280361364,4.55,241.98,241.81,7.12]
[1758280361563,2.98740048,241.97,241.81,7.12]
[1758280361763,3.7179,241.95,241.86,7.12]
[1758280361969,2.98740048,241.94,241.86,7.12]
[1758280363169,2.98740048,241.94,241.87,103.18]
[1758280364067,2.98740048,241.93,241.87,103.18]
[1758280364266,3.7175,241.97,241.88,7.12]
[1758280364470,2.96491335,241.96,241.88,7.12]
[1758280364673,2.96491335,241.95,241.88,7.12]
[1758280364971,2.96491335,241.94,241.88,7.12]
[1758280365166,2.96491335,241.93,241.85,3.7193]
[1758280365368,3.7177,241.96,241.86,110.22]
[1758280365573,2.96460279,241.95,241.86,110.22]
[1758280365772,2.96460279,241.94,241.86,113.939]
[1758280365972,3.7177,241.96,241.86,113.939]
[1758280366272,2.96461183,241.95,241.87,7.12]
[1758280366567,2.96461183,241.94,241.88,7.12]
[1758280366871,3.7177,241.96,241.88,7.12]
[1758280367071,2.96443312,241.95,241.89,103.06]
[1758280367273,3.7177,241.96,241.89,103.06]
[1758280367474,2.96446264,241.95,241.89,103.06]
[1758280367773,2.96443555,241.94,241.9,103.04]
[1758280367974,3.7177,241.96,241.9,103.04]
[1758280368168,2.96443555,241.95,241.91,7.12]
[1758280368474,2.96443555,241.94,241.91,7.12]
[1758280368772,3.7177,241.96,241.91,7.12]
[1758280368973,2.96551145,241.95,241.91,7.12]
[1758280369170,2.96551145,241.94,241.91,7.12]
[1758280369472,8.2677,241.96,241.91,7.12]
[1758280369671,2.96690469,241.95,241.91,7.12]
[1758280369873,2.96690469,241.94,241.91,7.12]
[1758280370074,8.2677,241.96,241.91,7.12]
[1758280370373,2.96690469,241.95,241.91,7.12]
[1758280370672,2.96690469,241.94,241.91,7.12]
[1758280370872,8.2677,241.96,241.91,7.12]
[1758280371175,2.96813342,241.95,241.91,7.12]
[1758280371373,2.96813342,241.94,241.91,7.12]
[1758280371575,8.2677,241.96,241.91,7.12]
[1758280371872,2.9688194,241.95,241.92,102.96]
[1758280372073,2.9688194,241.94,241.92,102.96]
[1758280372274,8.2677,241.96,241.92,110.08]
[1758280372569,2.96975989,241.95,241.92,110.08]
[1758280372772,8.2677,241.96,241.92,110.08]
[1758280372975,2.96975989,241.95,241.92,110.08]
[1758280373175,8.2677,241.96,241.92,110.08]
[1758280373475,2.97076841,241.95,241.92,110.08]
[1758280373675,8.2677,241.96,241.92,110.08]
[1758280373872,2.97076761,241.95,241.93,102.84]
[1758280374174,7.52076761,241.94,241.92,102.82]
[1758280374376,4.55,241.94,241.92,102.82]
[1758280374575,4.55,241.94,241.87,7.12]
[1758280374767,8.268,241.94,241.88,102.82]
[1758280376973,0.0290908,241.93,241.88,102.82]
[1758280377176,0.0290908,241.93,241.89,6.95]
[1758280377680,0.0290908,241.93,241.88,102.82]
[1758280378175,0.0290908,241.93,241.89,6.92]
[1758280378377,0.0290908,241.93,241.88,102.82]
[1758280378578,0.0290908,241.93,241.89,6.92]
[1758280378980,0.0290908,241.93,241.88,102.82]
[1758280379583,7.52690203,241.92,241.86,102.7]
[1758280379784,7.52690203,241.91,241.87,6.92]
[1758280379986,2.97690203,241.9,241.87,6.92]
[1758280380180,3.7185,241.9,241.87,6.92]
[1758280382780,3.7185,241.9,241.86,102.7]
[1758280383083,3.7185,241.9,241.87,6.92]
[1758280383586,3.7185,241.9,241.88,102.68]
[1758280384486,3.7185,241.9,241.88,109.6]
[1758280384686,0.0290908,241.93,241.88,102.68]
[1758280384883,0.0290908,241.93,241.89,6.92]
[1758280385277,0.0290908,241.93,241.88,102.68]
[1758280385985,0.0290908,241.93,241.89,6.92]
[1758280387691,0.0290908,241.93,241.88,102.68]
[1758280387882,0.0290908,241.93,241.89,6.92]
[1758280388387,8.2972908,241.93,241.89,6.92]
[1758280388589,7.53044797,241.92,241.89,6.92]
[1758280388788,2.98044797,241.91,241.9,102.58]
[1758280389085,6.69894797,241.91,241.9,102.58]
[1758280389387,6.69894797,241.91,241.9,109.5]
[1758280390681,6.69894797,241.91,241.9,6.92]
[1758280390880,3.7187,241.9,241.84,6.92]
[1758280391084,2.98044797,241.89,241.86,6.92]
[1758280391287,2.98044797,241.89,241.85,94.82]
[1758280391478,2.98044797,241.89,241.86,6.92]
[1758280391881,2.98044797,241.89,241.85,94.82]
[1758280392481,2.98044797,241.89,241.86,6.92]
[1758280393691,2.98044797,241.89,241.85,94.82]
[1758280393879,2.98044797,241.89,241.86,6.92]
[1758280395086,2.98044797,241.89,241.85,94.82]
[1758280395986,2.98044797,241.89,241.86,6.92]
[1758280396190,2.98044797,241.89,241.85,94.82]
[1758280397090,2.98044797,241.89,241.86,6.92]
[1758280397694,2.98044797,241.89,241.85,94.82]
[1758280397894,2.98044797,241.89,241.86,6.92]
[1758280398195,2.98044797,241.89,241.85,94.82]
[1758280398496,2.98044797,241.89,241.86,6.92]
[1758280398692,2.98044797,241.89,241.85,94.82]
[1758280398899,3.7472908,241.93,241.86,6.92]
[1758280399086,2.94340784,241.92,241.86,8.12352752]
[1758280399290,3.7472908,241.93,241.86,8.12352752]
[1758280399291,2.94340784,241.91,241.86,8.12352752]
[1758280399595,0.0290908,241.93,241.88,6.92]
[1758280399796,2.94300448,241.92,241.88,6.92]
[1758280399992,2.94300448,241.91,241.85,96.02352752]
[1758280400294,2.94300448,241.9,241.86,6.92]
[1758280400494,0.0290908,241.93,241.86,6.92]
[1758280400691,2.94269971,241.92,241.86,6.92]
[1758280400886,2.94269971,241.91,241.86,6.92]
[1758280401097,2.94269971,241.9,241.85,96.02352752]
[1758280401289,0.0290908,241.93,241.86,6.92]
[1758280401489,2.94272064,241.92,241.86,6.92]
[1758280401692,2.94272064,241.91,241.85,96.02352752]
[1758280401887,2.94272064,241.9,241.85,99.74272752]
[1758280402092,3.7472908,241.93,241.86,6.92]
[1758280402290,2.9427282,241.92,241.86,6.92]
[1758280402491,2.9427282,241.91,241.85,1.20352752]
[1758280402691,2.9427282,241.9,241.86,44.16]
[1758280402895,3.7472908,241.93,241.87,6.92]
[1758280403198,2.94254747,241.92,241.87,6.92]
[1758280403393,2.94254747,241.91,241.87,6.92]
[1758280403595,2.94254747,241.9,241.88,98.6]
[1758280403796,2.94254747,241.89,241.88,105.52]
[1758280404896,2.94254747,241.89,241.88,6.92]
[1758280405201,4.55,241.92,241.88,109.16]
[1758280405393,2.89760684,241.91,241.88,109.16]
[1758280405592,2.89760684,241.9,241.89,6.92]
[1758280406202,2.89760684,241.9,241.89,102.2]
[1758280406694,11.16620684,241.9,241.89,102.2]
[1758280406896,4.55,241.89,241.81,6.92]
[1758280407200,2.89760684,241.88,241.82,102.22]
[1758280407401,4.55,241.89,241.82,102.22]
[1758280407698,2.89702462,241.88,241.82,102.22]
[1758280407887,3.7189,241.88,241.82,102.22]
[1758280408298,3.7189,241.88,241.83,6.79]
[1758280408594,2.89682685,241.87,241.83,6.79]
[1758280408798,3.7189,241.88,241.83,6.79]
[1758280409000,2.8968254,241.87,241.82,102.22]
[1758280409207,3.7189,241.88,241.83,6.79]
[1758280409400,3.7189,241.88,241.8,12.36602505]
[1758280409401,2.89667125,241.87,241.85,6.79]
[1758280409701,3.7189,241.88,241.85,108.99]
[1758280409900,2.89666186,241.87,241.85,108.99]
[1758280410204,3.7191,241.87,241.85,108.99]
[1758280411097,2.89643048,241.86,241.85,108.99]
[1758280413495,2.89643048,241.86,241.85,102.2]
[1758280413802,7.44643048,241.86,241.85,102.2]
[1758280413993,60.75253048,241.86,241.81,6.79]
[1758280414195,57.866,241.81,241.73,6.79]
[1758280414498,4.0968874,241.8,241.74,102.18]
[1758280414699,1.20352752,241.8,241.74,102.18]
[1758280415096,3.7207,241.76,241.75,6.79]
[1758280415498,2.89094867,241.76,241.72,30.8]
[1758280415698,3.7207,241.76,241.73,6.79]
[1758280416100,59.08712752,241.74,241.62,6.79]
[1758280416401,59.08712752,241.74,241.64,6.79]
[1758280416797,57.8934,241.7,241.64,6.79]
[1758280416997,57.8934,241.7,241.52,312.56]
[1758280416998,1.20352752,241.68,241.55,6.79]
[1758280417197,1.20352752,241.68,241.57,6.79]
[1758280417802,3.7223,241.66,241.57,6.79]
[1758280418408,3.7223,241.66,241.57,19.35646685]
[1758280418696,3.7223,241.66,241.58,6.79]
[1758280419809,1.20352752,241.68,241.58,6.79]
[1758280421203,3.7221,241.67,241.58,6.79]
[1758280425400,73.9,241.79,241.57,12.55227865]
[1758280425401,4.55,241.76,241.6,1.20352752]
[1758280425710,5.75352752,241.76,241.65,6.79]
[1758280426010,5.75352752,241.76,241.67,7.99352752]
[1758280426804,3.7211,241.74,241.67,7.99352752]
[1758280427214,3.7211,241.74,241.67,6.79]
[1758280431011,4.55,241.73,241.67,6.79]
[1758280431814,3.7216,241.7,241.67,6.79]
[1758280432910,8.2712,241.73,241.63,6.79]
[1758280433121,3.7212,241.73,241.66,6.79]
[1758280439016,3.7212,241.73,241.66,49.45]
[1758280440921,4.56,241.73,241.66,6.79]
[1758280441422,1.20352752,241.72,241.66,6.79]
[1758280441824,3.7216,241.71,241.66,6.79]
[1758280442025,4.56,241.77,241.64,7.15]
[1758280443522,57.8743,241.78,241.64,7.15]
[1758280443922,3.7213,241.73,241.64,7.15]
[1758280444219,4.56,241.74,241.64,7.15]
[1758280444412,3.7214,241.72,241.64,7.15]
[1758280445524,3.7216,241.7,241.64,7.15]
[1758280445824,4.56,241.74,241.64,7.15]
[1758280446822,3.7213,241.73,241.64,7.15]
[1758280447025,4.56,241.74,241.64,7.15]
[1758280447525,3.7219,241.69,241.63,7.15]
[1758280449528,3.7215,241.71,241.63,7.15]
[1758280449824,4.56,241.74,241.63,7.15]
[1758280450826,3.7212,241.73,241.63,7.15]
[1758280451919,4.56,241.71,241.63,7.15]
[1758280452118,57.8867,241.73,241.63,7.15]
[1758280452320,4.56,241.71,241.63,7.15]
[1758280452624,57.8867,241.73,241.63,7.15]
[1758280452921,3.7221,241.67,241.63,7.15]
[1758280453122,8.2821,241.67,241.63,7.15]
[1758280455224,4.56,241.66,241.58,7.15]
[1758280456032,8.2827,241.63,241.57,19.70227865]
[1758280456221,8.2827,241.63,241.57,7.15]
[1758280456421,3.723,241.61,241.54,3.7241]
[1758280456728,3.723,241.61,241.55,7.15]
[1758280457126,57.9058,241.65,241.55,7.15]
[1758280457425,57.9058,241.65,241.48,7.15]
[1758280457426,4.56,241.62,241.48,7.15]
[1758280457632,4.56,241.67,241.55,7.15]
[1758280457829,2.8795445,241.66,241.55,9.03349951]
[1758280458028,2.8795445,241.65,241.56,7.15]
[1758280458229,4.56,241.67,241.56,7.15]
[1758280458230,2.8795445,241.64,241.56,7.15]
[1758280458429,4.56,241.67,241.56,7.15]
[1758280458632,2.88239747,241.66,241.56,7.15]
[1758280458927,6.60489747,241.65,241.56,7.15]
[1758280459130,2.88239747,241.64,241.56,7.15]
[1758280459528,8.2827,241.63,241.56,7.15]
[1758280459729,4.56,241.63,241.56,7.15]
[1758280460525,3.7224,241.66,241.56,7.15]
[1758280460731,2.88433301,241.65,241.56,7.15]
[1758280460933,4.56,241.68,241.57,7.15]
[1758280461233,2.88458169,241.67,241.57,7.15]
[1758280461432,4.56,241.68,241.57,7.15]
[1758280461633,2.8846338,241.67,241.57,7.15]
[1758280461834,4.56,241.68,241.59,3.7232]
[1758280462033,2.8846338,241.67,241.6,7.15]
[1758280462229,4.56,241.68,241.6,7.15]
[1758280462431,2.88467965,241.67,241.6,7.15]
[1758280462632,4.56,241.68,241.6,7.15]
[1758280462832,2.88477776,241.67,241.6,7.15]
[1758280463033,4.56,241.68,241.6,7.15]
[1758280463329,6.60709015,241.67,241.6,7.15]
[1758280463532,3.7221,241.67,241.6,7.15]
[1758280468435,4.56,241.68,241.6,7.15]
[1758280469540,8.282,241.68,241.6,7.15]
[1758280475540,57.885,241.74,241.53,6.73]
[1758280475541,4.56,241.64,241.53,6.73]
[1758280475741,2.88510992,241.63,241.53,6.73]
[1758280475931,2.88510992,241.62,241.53,6.73]
[1758280476133,4.56,241.64,241.53,6.73]
[1758280476341,2.88496124,241.63,241.53,6.73]
[1758280476541,4.56,241.64,241.53,6.73]
[1758280476731,3.7233,241.6,241.53,6.73]
[1758280477842,8.2833,241.6,241.53,6.73]
[1758280480949,3.7235,241.58,241.53,6.73]
[1758280481155,4.56,241.57,241.53,6.73]
[1758280481454,3.7235,241.58,241.53,6.73]
[1758280481654,3.7235,241.58,241.52,12.26367082]
[1758280481857,3.7232,241.6,241.54,6.73]
[1758280483055,3.7229,241.62,241.54,6.73]
[1758280483954,3.7229,241.62,241.55,3.7239]
[1758280484655,3.7229,241.62,241.56,6.73]
[1758280489757,4.56,241.68,241.56,6.73]
[1758280490853,8.2819,241.68,241.6,6.73]
[1758280495362,2.89131018,241.67,241.6,6.73]
[1758280495564,8.2819,241.68,241.6,6.73]
[1758280495770,2.8913112,241.67,241.6,6.73]
[1758280496067,8.2819,241.68,241.6,6.73]
[1758280496268,2.89180694,241.67,241.6,6.73]
[1758280496470,8.2819,241.68,241.6,6.73]
[1758280496669,2.89180694,241.67,241.6,6.73]
[1758280496872,8.2819,241.68,241.6,6.73]
[1758280497172,2.89180694,241.67,241.6,6.73]
[1758280497470,3.7222,241.67,241.6,6.73]
[1758280497971,4.55,241.66,241.6,6.73]
[1758280502272,3.7224,241.65,241.6,6.73]
[1758280502573,3.7224,241.65,241.53,6.94]
[1758280503775,3.7224,241.65,241.58,1.12527499]
[1758280504073,3.7224,241.65,241.59,6.94]
[1758280504270,1.12527499,241.66,241.54,1.12527499]
[1758280504472,1.12527499,241.66,241.55,6.94]
[1758280504473,2.89392342,241.65,241.55,6.94]
[1758280504665,2.89392342,241.64,241.55,6.94]
[1758280504870,8.2832,241.6,241.54,8.06527499]
[1758280505170,4.56,241.59,241.52,12.12685323]
[1758280505375,4.56,241.59,241.51,10.6645]
[1758280505574,4.56,241.59,241.52,6.94]
[1758280506776,4.56,241.59,241.52,19.2880852]
[1758280506978,4.56,241.59,241.53,0.02694388]
[1758280508269,0.0301532,241.62,241.54,6.94]
[1758280508870,3.7531532,241.62,241.54,6.94]
[1758280509075,0.0301532,241.62,241.56,1.12527499]
[1758280509272,4.5901532,241.62,241.54,6.94]
[1758280510176,4.56,241.61,241.54,6.94]
[1758280510375,2.89292164,241.6,241.53,0.02694388]
[1758280510577,4.56,241.59,241.53,0.02694388]
[1758280511179,4.56,241.57,241.53,6.96694388]
[1758280512378,4.56,241.57,241.53,0.02694388]
[1758280512379,4.56,241.56,241.53,0.02694388]
[1758280512577,3.7237,241.57,241.53,0.02694388]
[1758280512878,4.56,241.56,241.53,0.02694388]
[1758280513778,3.7551026,241.57,241.53,6.96694388]
[1758280513779,0.0314026,241.57,241.53,6.96694388]
[1758280513981,4.5914026,241.57,241.53,6.96694388]
[1758280514280,4.56,241.56,241.53,6.96694388]
[1758280515377,0.0314026,241.57,241.53,0.02694388]
[1758280516282,0.0314026,241.57,241.54,6.94]
[1758280516679,0.0314026,241.57,241.53,0.02694388]
[1758280516884,0.0314026,241.57,241.54,6.94]
[1758280517085,0.0314026,241.57,241.53,0.02694388]
[1758280517383,0.0314026,241.57,241.54,6.94]
[1758280518283,0.0314026,241.57,241.53,0.02694388]
[1758280519473,4.56,241.56,241.53,0.02694388]
[1758280519673,0.0314026,241.57,241.53,0.02694388]
[1758280519884,4.56,241.55,241.53,0.02694388]
[1758280520181,3.7239,241.56,241.53,0.02694388]
[1758280520683,0.0314026,241.57,241.54,6.94]
[1758280521283,0.0314026,241.57,241.53,1.15221887]
[1758280521479,0.0314026,241.57,241.54,6.94]
[1758280522277,0.0314026,241.57,241.53,4.87631887]
[1758280522582,0.0314026,241.57,241.54,6.94]
[1758280522783,0.0314026,241.57,241.53,4.87631887]
[1758280523087,0.0314026,241.57,241.54,6.94]
[1758280523288,0.0314026,241.57,241.53,4.87631887]
[1758280523884,0.0314026,241.57,241.54,6.94]
[1758280525188,0.0314026,241.57,241.53,3.75104388]
[1758280525792,0.0314026,241.57,241.54,6.94]
[1758280526483,0.0314026,241.57,241.53,3.75104388]
[1758280526688,0.0314026,241.57,241.54,6.94]
[1758280527094,0.0314026,241.57,241.53,3.75104388]
[1758280527490,0.0314026,241.57,241.54,6.94]
[1758280527691,0.0314026,241.57,241.53,3.75104388]
[1758280528194,0.0314026,241.57,241.54,6.88]
[1758280528595,0.0314026,241.57,241.53,3.75104388]
[1758280529396,0.0314026,241.57,241.54,6.88]
[1758280529586,0.0314026,241.57,241.53,3.75104388]
[1758280529785,0.0314026,241.57,241.54,6.88]
[1758280529990,0.0314026,241.57,241.53,3.75104388]
[1758280530885,0.0314026,241.57,241.55,8.00527499]
[1758280531089,0.0314026,241.57,241.56,6.88]
[1758280531496,0.0314026,241.57,241.56,10.6038]
[1758280537588,4.57,241.69,241.57,6.88]
[1758280537794,4.57,241.73,241.64,6.88]
[1758280537991,4.62139212,241.84,241.66,1.12527499]
[1758280538300,4.57,241.8,241.7,10.6016]
[1758280538697,4.57,241.8,241.72,1.12527499]
[1758280538901,5.69527499,241.86,241.76,1.12527499]
[1758280539101,2.88572795,241.85,241.76,1.12527499]
[1758280539303,4.57,241.83,241.76,1.12527499]
[1758280539600,4.57,241.83,241.78,0.02644626]
[1758280539802,4.57,241.85,241.78,0.02644626]
[1758280540001,2.88325936,241.84,241.78,0.02644626]
[1758280540201,4.57,241.85,241.78,0.02644626]
[1758280540700,8.2893,241.85,241.78,0.02644626]
[1758280540893,2.88108154,241.84,241.78,0.02644626]
[1758280541195,8.2893,241.85,241.78,0.02644626]
[1758280541599,4.57,241.82,241.78,0.02644626]
[1758280541804,57.8479,241.89,241.78,0.02644626]
[1758280541805,4.57,241.79,241.78,0.02644626]
[1758280542504,4.99,241.79,241.78,0.02644626]
[1758280542799,4.99,241.79,241.58,57.9206]
[1758280542999,4.57,241.72,241.63,6.88]
[1758280543901,1.12527499,241.73,241.62,6.88]
[1758280544101,5.69527499,241.76,241.65,6.88]
[1758280544599,3.7209,241.75,241.65,6.88]
[1758280545004,5.69527499,241.76,241.65,6.88]
[1758280546605,4.57,241.75,241.65,6.88]
[1758280546903,4.57,241.72,241.65,6.88]
[1758280547305,1.12527499,241.7,241.6,6.88]
[1758280548500,1.12527499,241.7,241.6,19.16689983]
[1758280548699,0.03163042,241.67,241.63,6.9084916]
[1758280549106,4.60163042,241.67,241.63,6.9084916]
[1758280550608,0.03163042,241.67,241.63,0.0284916]
[1758280550806,4.57,241.66,241.63,0.0284916]
[1758280551006,0.03163042,241.67,241.63,0.0284916]
[1758280551311,0.03163042,241.67,241.64,6.88]
[1758280551508,0.03163042,241.67,241.64,1.12527499]
[1758280551710,0.03163042,241.67,241.65,6.88]
[1758280552111,0.03163042,241.67,241.64,1.12527499]
[1758280552306,0.03163042,241.67,241.65,6.88]
[1758280552513,0.03163042,241.67,241.66,6.88]
[1758280552812,4.57,241.77,241.66,7.3]
[1758280553012,4.6,241.81,241.71,8.00527499]
[1758280553813,8.32,241.81,241.71,8.00527499]
[1758280554008,8.32,241.81,241.74,0.02850768]
[1758280555105,3.7202,241.79,241.74,0.02850768]
[1758280555609,3.7205,241.78,241.74,0.02850768]
[1758280555916,4.6,241.77,241.74,0.02850768]
[1758280556317,4.59,241.77,241.74,0.02850768]
[1758280556515,3.7205,241.78,241.74,0.02850768]
[1758280557215,4.59,241.77,241.74,0.02850768]
[1758280558011,4.59,241.82,241.75,6.99]
[1758280558417,4.59,241.86,241.77,1.12527499]
[1758280558917,4.59,241.86,241.77,4.84577499]
[1758280560212,4.59,241.86,241.77,1.12527499]
[1758280561020,4.59,241.9,241.78,7.1]
[1758280561619,4.59,241.87,241.78,7.1]
[1758280561820,1.12527499,241.88,241.78,7.1]
[1758280561821,1.12527499,241.88,241.82,0.0314585]
[1758280562014,3.7196,241.83,241.82,0.0314585]
[1758280562216,8.3096,241.83,241.82,0.0314585]
[1758280563924,8.7296,241.83,241.82,0.0314585]
[1758280564430,8.3103,241.79,241.7,7.1]
[1758280564722,1.12527499,241.77,241.7,7.1]
[1758280565825,8.3103,241.79,241.7,7.1]
[1758280566025,8.3103,241.79,241.7,10.8216]
[1758280566519,8.3103,241.79,241.7,7.1]
[1758280569327,4.59,241.77,241.65,7.1]
[1758280570926,3.7208,241.75,241.65,7.1]
[1758280571225,4.59,241.77,241.65,7.1]
[1758280571927,3.7212,241.73,241.65,7.1]
[1758280572524,3.7215,241.72,241.65,7.1]
[1758280572828,4.59,241.71,241.61,7.1]
[1758280574234,3.7221,241.67,241.61,7.1]
[1758280575628,3.7221,241.67,241.56,7.1]
[1758280576431,3.7224,241.65,241.56,7.1]
[1758280577028,8.3124,241.65,241.56,7.1]
[1758280577235,3.7227,241.63,241.56,7.1]
[1758280577828,4.59,241.6,241.52,19.50518904]
[1758280578131,4.59,241.6,241.52,7.1]
[1758280578927,4.59,241.6,241.52,10.8244]
[1758280579133,4.59,241.65,241.54,1.8824772]
[1758280579334,4.59,241.65,241.55,7.1]
[1758280580228,4.59,241.69,241.55,7.1]
[1758280580638,4.59,241.69,241.56,7.1]
[1758280580837,3.7221,241.67,241.57,3.7236]
[1758280581133,3.7221,241.67,241.58,7.1]
[1758280581330,3.7224,241.65,241.58,7.1]
[1758280581534,4.59,241.7,241.58,7.1]
[1758280582340,3.722,241.68,241.58,7.1]
[1758280583135,8.3122,241.67,241.58,7.1]
[1758280583540,4.59,241.67,241.58,7.1]
[1758280583940,3.7224,241.65,241.58,7.1]
[1758280587139,8.3121,241.67,241.58,10.8234]
[1758280587340,4.59,241.67,241.58,10.8234]
[1758280587742,3.7218,241.69,241.59,10.8232]
[1758280588046,4.59,241.75,241.59,7.1]
[1758280588240,4.6,241.73,241.59,7.1]
[1758280588843,3.7215,241.71,241.61,3.723]
[1758280589043,3.7215,241.71,241.62,7.08]
[1758280589742,4.6,241.7,241.62,7.08]
[1758280589941,8.3217,241.7,241.62,7.08]
[1758280590141,4.6,241.7,241.62,7.08]
[1758280590738,57.89,241.71,241.57,7.08]
[1758280590936,4.6,241.68,241.57,7.08]
[1758280591139,57.8951,241.69,241.57,7.08]
[1758280591439,8.3228,241.63,241.57,7.08]
[1758280591836,4.6,241.7,241.57,7.08]
[1758280592040,1.8824772,241.72,241.57,7.08]
[1758280592242,2.87542795,241.71,241.57,7.08]
[1758280592440,8.3224,241.66,241.58,3.7235]
[1758280592940,3.7226,241.64,241.57,7.08]
[1758280596548,3.7228,241.63,241.57,7.08]
[1758280599356,1.8824772,241.72,241.57,7.08]
[1758280599553,1.8824772,241.72,241.5,57.9389]
[1758280599554,4.6,241.71,241.59,1.8824772]
[1758280599854,4.6,241.71,241.6,7.08]
[1758280600653,3.7219,241.69,241.6,10.803]
[1758280601961,3.7219,241.69,241.61,7.08]
[1758280602156,4.6,241.71,241.62,7.08]
[1758280602545,8.3215,241.71,241.62,10.8027]
[1758280602745,4.6,241.76,241.63,7.08]
[1758280603152,8.3207,241.76,241.66,3.7222]
[1758280603351,8.3207,241.76,241.68,7.08]
[1758280603647,8.3207,241.76,241.67,0.02854213]
[1758280603648,0.02737725,241.72,241.67,0.02854213]
[1758280604054,0.02737725,241.72,241.68,7.08]
[1758280605255,0.02737725,241.72,241.67,0.02854213]
[1758280605656,0.02737725,241.72,241.68,7.08]
[1758280606248,0.02737725,241.72,241.7,1.8824772]
[1758280606554,0.02737725,241.72,241.71,7.08]
[1758280611455,8.3492,241.86,241.75,7.08]
[1758280611655,4.63,241.85,241.75,7.08]
[1758280612056,3.7192,241.86,241.75,7.08]
[1758280612258,4.63,241.83,241.75,7.08]
[1758280612854,4.63,241.83,241.77,0.03032253]
[1758280616562,3.7198,241.82,241.77,0.03032253]
[1758280617562,4.63,241.81,241.77,0.03032253]
[1758280617959,3.7198,241.82,241.77,0.03032253]
[1758280618359,4.62,241.81,241.77,0.03032253]
[1758280618556,3.7198,241.82,241.77,0.03032253]
[1758280619263,4.62,241.81,241.77,0.03032253]
[1758280619459,3.7198,241.82,241.77,0.03032253]
[1758280619662,4.62,241.81,241.77,0.03032253]
[1758280620259,3.7198,241.82,241.77,0.03032253]
[1758280620458,4.62,241.81,241.77,0.03032253]
[1758280620664,3.7198,241.82,241.77,0.03032253]
[1758280620966,4.62,241.81,241.77,0.03032253]
[1758280621556,3.7198,241.82,241.77,0.03032253]
[1758280621858,3.7201,241.81,241.77,0.03032253]
[1758280622060,1.8824772,241.83,241.77,0.03032253]
[1758280622358,4.62,241.82,241.77,0.03032253]
[1758280622863,4.62,241.78,241.77,0.03032253]
[1758280623955,3.7199,241.81,241.77,0.03032253]
[1758280624161,4.62,241.8,241.77,0.03032253]
[1758280624865,3.7199,241.81,241.77,0.03032253]
[1758280625067,1.8824772,241.83,241.77,0.03032253]
[1758280625068,4.62,241.78,241.77,0.03032253]
[1758280625564,5.04,241.78,241.77,0.03032253]
[1758280625768,3.7212,241.73,241.61,1.20526927]
[1758280626066,4.92646927,241.73,241.62,6.85]
[1758280626365,4.92646927,241.73,241.63,3.7226]
[1758280627365,4.62,241.72,241.63,3.7226]
[1758280627859,3.7215,241.71,241.62,6.85]
[1758280630969,4.62,241.72,241.62,6.85]